bitfinex-derivatives/quotes_BNBF0:USTF0_20250710
["timestamp","ask_amount","ask_price","bid_price","bid_amount"]
[1752132155792,1.66781065,671.82,671.28,1.67086976]
[1752132156492,1.66781065,671.82,671.14,2.2067592]
[1752132156493,1.66781065,671.82,671.27,1.67086976]
[1752132156694,1.66781065,671.82,671.28,1.67086976]
[1752132157192,1.66781065,671.84,671.24,1.67086976]
[1752132159694,0.25908665,671.88,671.32,1.67086976]
[1752132160294,0.25908665,671.88,671.31,1.67086976]
[1752132161997,0.25908665,671.88,671.32,1.48]
[1752132166698,0.25908665,671.88,671.33,1.67086976]
[1752132166900,0.25908665,671.88,671.32,3.15086976]
[1752132167100,0.25908665,671.88,671.33,1.67086976]
[1752132170105,0.25908665,671.88,671.32,1.48]
[1752132187519,1.66781065,671.87,671.32,1.48]
[1752132189723,1.9268973,671.88,671.32,1.48]
[1752132190723,1.66781065,671.87,671.32,1.48]
[1752132192524,1.9268973,671.88,671.32,1.48]
[1752132193527,1.66781065,671.86,671.32,1.48]
[1752132197123,1.66781065,671.85,671.32,1.48]
[1752132198924,1.66781065,671.85,671.14,1.67086976]
[1752132199430,1.66781065,671.85,671.15,1.67086976]
[1752132199829,1.66781065,671.84,671.16,1.67086976]
[1752132201332,1.66781065,671.84,671.17,1.67086976]
[1752132201637,1.66781065,671.84,671.18,1.859]
[1752132202235,1.66781065,671.83,671.18,1.859]
[1752132202439,1.66781065,671.82,671.19,1.67086976]
[1752132202641,1.66781065,671.81,671.2,1.67086976]
[1752132203139,1.66781065,671.81,671.21,1.67086976]
[1752132203639,1.66781065,671.8,671.21,1.67086976]
[1752132204640,1.66781065,671.82,671.18,3.52986976]
[1752132204936,1.66781065,671.83,671.18,1.859]
[1752132205943,1.66781065,671.82,671.18,3.52986976]
[1752132206342,0.25908665,671.88,671.18,1.859]
[1752132217147,0.25908665,671.88,671.18,3.52918]
[1752132217655,0.25908665,671.88,671.18,1.859]
[1752132218352,0.25908665,671.88,671.18,3.52918]
[1752132218549,0.25908665,671.88,671.18,1.859]
[1752132220154,0.25908665,671.88,671.18,3.52918]
[1752132220454,1.93003134,671.88,671.18,3.52918]
[1752132220651,0.25908665,671.88,671.18,3.52918]
[1752132221151,0.25908665,671.88,671.21,1.67018]
[1752132221152,1.67094469,671.87,671.21,1.67018]
[1752132221355,1.67094469,671.86,671.23,1.67018]
[1752132222051,1.67094469,671.84,671.25,1.67018]
[1752132222659,1.67094469,671.83,671.26,1.67018]
[1752132222958,1.67094469,671.82,671.28,1.67018]
[1752132223155,1.67094469,671.82,671.27,1.67018]
[1752132223660,1.67094469,671.81,671.28,1.67018]
[1752132224556,0.25908665,671.88,671.25,1.67018]
[1752132224557,1.67094469,671.83,671.25,1.67018]
[1752132226759,1.67094469,671.83,671.24,1.67018]
[1752132227259,1.67094469,671.83,671.25,1.67018]
[1752132230861,1.67094469,671.82,671.25,1.67018]
[1752132231260,1.67094469,671.82,671.26,1.67018]
[1752132234066,1.67094469,671.84,671.23,1.67018]
[1752132234269,1.67094469,671.83,671.23,1.67018]
[1752132234467,1.67094469,671.83,671.24,1.67018]
[1752132234970,1.67094469,671.82,671.25,1.67018]
[1752132235170,1.67094469,671.83,671.24,1.67018]
[1752132236167,1.67094469,671.82,671.25,1.67018]
[1752132238165,1.67094469,671.82,671.18,1.859]
[1752132238166,1.67094469,671.82,671.26,1.67018]
[1752132238470,1.67094469,671.82,671.25,1.67018]
[1752132239270,1.67094469,671.82,671.26,1.67018]
[1752132239872,1.67094469,671.82,671.25,1.67018]
[1752132240471,1.67094469,671.82,671.26,1.67018]
[1752132241168,1.67094469,671.81,671.26,1.67018]
[1752132243270,1.67094469,671.81,671.27,1.67018]
[1752132243668,1.67094469,671.84,671.21,1.67018]
[1752132244070,1.67094469,671.83,671.23,1.67018]
[1752132246275,1.67094469,671.82,671.24,1.67018]
[1752132250073,1.67094469,671.81,671.25,1.67018]
[1752132253580,1.67094469,671.77,671.31,1.67018]
[1752132254380,1.67094469,671.77,671.32,1.67018]
[1752132254879,1.67094469,671.76,671.33,1.67018]
[1752132258283,1.67094469,671.75,671.33,1.67018]
[1752132258978,1.67094469,671.75,671.34,1.67018]
[1752132260678,1.67094469,671.74,671.36,1.67018]
[1752132262182,0.98364971,671.73,671.36,1.67018]
[1752132262380,0.98364971,671.72,671.35,1.67018]
[1752132262585,0.98364971,671.71,671.35,1.67018]
[1752132262786,0.98364971,671.7,671.35,1.67018]
[1752132262987,0.98364971,671.69,671.35,1.67018]
[1752132263184,0.98364971,671.73,671.35,1.67018]
[1752132263488,0.98364971,671.72,671.36,3.02818]
[1752132263684,0.98364971,671.71,671.36,1.358]
[1752132263882,0.98364971,671.7,671.36,1.358]
[1752132264083,0.98364971,671.69,671.36,3.02818]
[1752132264287,0.98364971,671.73,671.36,3.02818]
[1752132264588,0.98364971,671.72,671.36,3.02818]
[1752132264785,1.67094469,671.74,671.36,3.02818]
[1752132264786,0.98364971,671.71,671.36,3.02818]
[1752132264985,0.98364971,671.7,671.36,3.02818]
[1752132265191,0.98364971,671.69,671.36,3.02818]
[1752132265391,0.98364971,671.73,671.36,3.02818]
[1752132265594,0.98364971,671.72,671.36,3.02818]
[1752132265894,0.98364971,671.71,671.36,3.02818]
[1752132266194,0.98364971,671.7,671.36,3.02818]
[1752132266394,0.98364971,671.69,671.36,3.02818]
[1752132266690,1.67094469,671.73,671.37,1.67018]
[1752132266895,0.98378416,671.72,671.37,1.67018]
[1752132267194,0.98378416,671.71,671.36,1.358]
[1752132267490,0.98378416,671.75,671.36,1.358]
[1752132267690,1.67094469,671.76,671.36,1.358]
[1752132267691,0.98378416,671.74,671.36,1.358]
[1752132267895,0.98378416,671.73,671.36,1.358]
[1752132268192,0.98378416,671.72,671.36,1.358]
[1752132268397,0.98378416,671.71,671.36,1.358]
[1752132268592,0.98378416,671.75,671.36,1.358]
[1752132268892,0.98378416,671.74,671.36,1.358]
[1752132269093,0.98378416,671.73,671.36,1.358]
[1752132269296,0.98378416,671.72,671.36,1.358]
[1752132269496,0.98378416,671.71,671.36,1.358]
[1752132269792,0.98378416,671.75,671.36,1.358]
[1752132269993,0.98378416,671.74,671.36,1.358]
[1752132270195,0.98383476,671.73,671.36,1.358]
[1752132270398,0.98383476,671.72,671.36,1.358]
[1752132270596,0.98383476,671.71,671.36,1.358]
[1752132270797,0.98383476,671.7,671.36,1.358]
[1752132270994,0.98383476,671.75,671.36,1.358]
[1752132271193,0.98383476,671.74,671.36,1.358]
[1752132271493,0.98383476,671.73,671.36,1.358]
[1752132271697,0.98383476,671.72,671.36,1.358]
[1752132271999,0.98383476,671.71,671.36,1.358]
[1752132272197,0.98383476,671.7,671.36,1.358]
[1752132272493,0.98383476,671.76,671.36,1.358]
[1752132272694,0.98383476,671.75,671.36,1.358]
[1752132272894,0.98383476,671.74,671.36,1.358]
[1752132273097,0.98383476,671.73,671.36,1.358]
[1752132273394,0.98383476,671.72,671.36,1.358]
[1752132273594,0.98383476,671.71,671.36,1.358]
[1752132273795,0.98383476,671.7,671.36,1.358]
[1752132273997,0.98383476,671.76,671.36,1.358]
[1752132274296,0.98383476,671.75,671.36,1.358]
[1752132274496,0.98383476,671.74,671.36,1.358]
[1752132274694,0.98383476,671.73,671.36,1.358]
[1752132274897,0.98383476,671.72,671.36,1.358]
[1752132275096,0.98383476,671.71,671.36,1.358]
[1752132275394,0.98383476,671.7,671.36,1.358]
[1752132275599,0.98383476,671.76,671.36,1.358]
[1752132275797,0.98383476,671.75,671.36,1.358]
[1752132276093,0.98383476,671.74,671.36,1.358]
[1752132276298,0.98383476,671.73,671.36,1.358]
[1752132276499,0.98383476,671.72,671.36,1.358]
[1752132276699,0.98383476,671.71,671.36,1.358]
[1752132276896,0.98383476,671.77,671.36,1.358]
[1752132277097,0.98383476,671.76,671.36,1.358]
[1752132277295,0.98383476,671.75,671.36,1.358]
[1752132277494,0.98383476,671.74,671.36,1.358]
[1752132277700,0.98383476,671.73,671.36,1.358]
[1752132277901,0.98383476,671.72,671.36,1.358]
[1752132278100,0.98383476,671.71,671.36,1.358]
[1752132278302,0.98383476,671.7,671.36,1.358]
[1752132278502,0.98383476,671.76,671.36,1.358]
[1752132278802,0.98383476,671.75,671.36,1.358]
[1752132279002,0.98383476,671.74,671.36,1.358]
[1752132279199,0.98383476,671.73,671.36,1.358]
[1752132279398,0.98383476,671.72,671.36,1.358]
[1752132279600,0.98383476,671.71,671.36,1.358]
[1752132279799,0.98383476,671.7,671.36,1.358]
[1752132280000,0.98383476,671.76,671.36,1.358]
[1752132280202,0.98383476,671.75,671.36,1.358]
[1752132280400,0.98383476,671.74,671.36,1.358]
[1752132280601,0.98383476,671.73,671.36,1.358]
[1752132280804,0.98383476,671.72,671.36,1.358]
[1752132281100,0.98383476,671.71,671.36,1.358]
[1752132281304,0.98383476,671.7,671.36,1.358]
[1752132281500,0.98383476,671.69,671.36,1.358]
[1752132281804,1.67094469,671.75,671.36,1.358]
[1752132282005,0.98409406,671.74,671.36,1.358]
[1752132282203,0.98409406,671.73,671.36,1.358]
[1752132282404,0.98409406,671.72,671.36,1.358]
[1752132282602,0.98409406,671.71,671.36,1.358]
[1752132282805,0.98409406,671.7,671.36,1.358]
[1752132283003,0.98409406,671.76,671.36,1.358]
[1752132283203,0.98409406,671.75,671.36,1.358]
[1752132283405,0.98409406,671.74,671.36,1.358]
[1752132283702,0.98409406,671.73,671.36,1.358]
[1752132284005,0.98409406,671.72,671.36,1.358]
[1752132284203,0.98409406,671.71,671.36,1.358]
[1752132284407,0.98409406,671.7,671.36,1.358]
[1752132284705,0.98409406,671.76,671.36,1.358]
[1752132284907,0.98409406,671.75,671.36,1.358]
[1752132285102,0.98409406,671.74,671.36,1.358]
[1752132285300,0.98409406,671.73,671.36,1.358]
[1752132285500,0.98409406,671.72,671.36,1.358]
[1752132285700,0.98409406,671.71,671.36,1.358]
[1752132285903,0.98409406,671.7,671.36,1.358]
[1752132286105,0.98409406,671.69,671.36,1.358]
[1752132286403,0.98409406,671.76,671.36,1.358]
[1752132286602,0.98409406,671.75,671.36,1.358]
[1752132286806,0.98409406,671.74,671.36,1.358]
[1752132287106,0.98409406,671.73,671.36,1.358]
[1752132287304,0.98409406,671.72,671.36,1.358]
[1752132287505,0.98409406,671.71,671.36,1.358]
[1752132287707,0.98409406,671.7,671.36,1.358]
[1752132287909,0.98409406,671.69,671.36,1.358]
[1752132288110,0.98409406,671.75,671.36,1.358]
[1752132288310,0.98409406,671.74,671.36,1.358]
[1752132288608,1.67094469,671.76,671.36,1.358]
[1752132288609,0.98409406,671.73,671.36,1.358]
[1752132288809,0.98409406,671.72,671.36,1.358]
[1752132289005,0.98409406,671.71,671.36,1.358]
[1752132289210,0.98409406,671.7,671.36,1.358]
[1752132289506,0.98409406,671.69,671.36,1.358]
[1752132289705,0.98409406,671.75,671.36,1.358]
[1752132290005,0.98409406,671.74,671.36,1.358]
[1752132290210,0.98409406,671.73,671.36,1.358]
[1752132290405,0.98409406,671.72,671.36,1.358]
[1752132290610,0.98409406,671.71,671.36,1.358]
[1752132290807,0.98409406,671.7,671.36,1.358]
[1752132291011,0.98409406,671.69,671.36,1.358]
[1752132291210,0.98409406,671.75,671.36,1.358]
[1752132291412,0.98408865,671.74,671.36,1.358]
[1752132291612,0.98408865,671.73,671.36,1.358]
[1752132291811,0.98408865,671.72,671.36,1.358]
[1752132292014,0.98408865,671.71,671.36,1.358]
[1752132292212,0.98408865,671.7,671.36,3.02818]
[1752132292416,0.98408865,671.69,671.36,1.358]
[1752132292716,0.98408865,671.68,671.36,1.358]
[1752132292911,1.67094469,671.74,671.36,1.358]
[1752132293118,0.98408831,671.73,671.36,1.358]
[1752132293414,0.98408831,671.72,671.36,1.358]
[1752132293617,0.98408831,671.71,671.36,1.358]
[1752132293915,0.98408831,671.7,671.36,1.358]
[1752132294118,0.98408831,671.76,671.36,1.358]
[1752132294315,0.98408831,671.75,671.36,1.358]
[1752132294615,0.98408831,671.74,671.36,1.358]
[1752132294818,0.98408831,671.73,671.36,1.358]
[1752132295019,0.98408831,671.72,671.36,1.358]
[1752132295215,0.98408831,671.71,671.36,1.358]
[1752132295416,0.98408831,671.7,671.36,1.358]
[1752132295618,0.98408831,671.77,671.36,1.358]
[1752132295822,0.98408831,671.76,671.36,1.358]
[1752132296020,0.98408831,671.75,671.36,1.358]
[1752132296316,0.98408831,671.74,671.36,1.358]
[1752132296520,0.98408831,671.73,671.36,1.358]
[1752132296721,0.98408831,671.72,671.36,1.358]
[1752132296919,0.98408831,671.71,671.36,1.358]
[1752132297116,0.98408831,671.7,671.36,1.358]
[1752132297320,0.98408831,671.77,671.36,1.358]
[1752132297518,0.98408831,671.76,671.36,1.358]
[1752132297720,0.98408831,671.75,671.36,1.358]
[1752132298021,0.98408831,671.74,671.36,1.358]
[1752132298220,0.98408831,671.73,671.36,1.358]
[1752132298425,0.98408831,671.72,671.36,1.358]
[1752132298620,0.98408831,671.71,671.36,1.358]
[1752132298923,0.98408831,671.7,671.36,1.358]
[1752132299220,0.98408831,671.76,671.36,1.358]
[1752132299520,0.98408831,671.75,671.36,1.358]
[1752132299820,0.98408831,671.74,671.36,1.358]
[1752132300023,0.98408831,671.73,671.36,1.358]
[1752132300320,0.98408831,671.72,671.36,1.358]
[1752132300526,0.98408831,671.71,671.36,1.358]
[1752132300822,0.98408831,671.7,671.36,1.358]
[1752132301022,1.6743189,671.77,671.36,1.358]
[1752132301220,0.98408831,671.76,671.36,1.358]
[1752132301421,0.98412934,671.75,671.36,1.358]
[1752132301625,0.98412934,671.74,671.36,1.358]
[1752132301824,0.98412934,671.73,671.36,1.358]
[1752132302021,0.98412934,671.72,671.36,1.358]
[1752132302325,0.98412934,671.71,671.36,1.358]
[1752132302620,0.98412934,671.7,671.36,1.358]
[1752132302823,0.98412934,671.76,671.36,1.358]
[1752132303025,0.98412934,671.75,671.36,1.358]
[1752132303222,0.98412934,671.74,671.36,1.358]
[1752132303522,0.98412934,671.73,671.36,1.358]
[1752132303725,0.98412934,671.72,671.36,1.358]
[1752132303928,0.98412934,671.71,671.36,1.358]
[1752132304128,0.98412934,671.7,671.36,1.358]
[1752132304324,0.98412934,671.69,671.36,1.358]
[1752132304527,0.98412934,671.68,671.36,1.358]
[1752132304824,0.98412934,671.74,671.36,1.358]
[1752132305025,0.98412934,671.73,671.36,1.358]
[1752132305324,0.98412934,671.72,671.36,1.358]
[1752132305527,0.98412934,671.71,671.36,1.358]
[1752132305729,0.98412934,671.7,671.36,1.358]
[1752132306027,0.98412934,671.69,671.36,1.358]
[1752132306224,0.98412934,671.68,671.36,1.358]
[1752132306427,1.6743189,671.75,671.36,1.358]
[1752132306628,0.98412806,671.74,671.36,1.358]
[1752132306824,0.98412806,671.73,671.36,1.358]
[1752132307028,0.98412806,671.72,671.36,1.358]
[1752132307328,0.9841273,671.71,671.36,1.358]
[1752132307528,0.9841273,671.7,671.36,1.358]
[1752132307827,0.9841273,671.69,671.36,1.358]
[1752132308023,0.9841273,671.75,671.36,1.358]
[1752132308226,0.9841273,671.74,671.36,1.358]
[1752132308426,0.9841273,671.73,671.36,1.358]
[1752132308625,0.9841273,671.72,671.36,1.358]
[1752132308828,0.9841273,671.71,671.36,1.358]
[1752132309030,0.9841273,671.7,671.36,1.358]
[1752132309230,0.9841273,671.69,671.36,1.358]
[1752132309430,0.9841273,671.75,671.36,1.358]
[1752132309628,0.9841273,671.74,671.36,1.358]
[1752132309831,0.9841273,671.73,671.36,1.358]
[1752132310132,0.98412529,671.72,671.36,1.358]
[1752132310331,0.98412529,671.71,671.36,1.358]
[1752132310631,0.98412529,671.7,671.36,1.358]
[1752132310829,0.98412529,671.69,671.36,1.358]
[1752132311029,0.98412529,671.75,671.36,1.358]
[1752132311231,0.98412529,671.74,671.36,1.358]
[1752132311430,0.98412529,671.73,671.36,1.358]
[1752132311630,0.98412529,671.72,671.36,1.358]
[1752132311835,0.98412529,671.71,671.36,1.358]
[1752132312030,0.98412529,671.7,671.36,1.358]
[1752132312330,0.98412529,671.69,671.36,1.358]
[1752132312530,0.98412529,671.75,671.36,1.358]
[1752132312833,0.98412529,671.74,671.36,1.358]
[1752132313133,0.98412529,671.73,671.36,1.358]
[1752132313331,0.98412529,671.72,671.36,1.358]
[1752132313532,0.98412529,671.71,671.36,1.358]
[1752132313733,0.98412529,671.7,671.36,1.358]
[1752132313929,0.98412529,671.69,671.36,1.358]
[1752132315331,0.98412165,671.7,671.36,1.358]
[1752132315531,0.98412165,671.69,671.36,1.358]
[1752132315831,1.6743058,671.75,671.36,1.358]
[1752132316029,0.98412078,671.74,671.36,1.358]
[1752132316234,0.98412078,671.73,671.36,1.358]
[1752132316432,0.98412078,671.72,671.36,1.358]
[1752132316731,0.98412078,671.71,671.36,1.358]
[1752132316936,0.98412078,671.7,671.36,1.358]
[1752132317138,0.98412078,671.69,671.36,1.358]
[1752132317338,1.6743058,671.75,671.36,1.358]
[1752132317532,0.98411918,671.74,671.36,1.358]
[1752132317837,0.98411918,671.73,671.36,1.358]
[1752132318037,0.98411918,671.72,671.36,1.358]
[1752132318333,0.98411918,671.71,671.36,1.358]
[1752132318537,0.98411918,671.7,671.36,1.358]
[1752132318734,1.6743058,671.76,671.36,1.358]
[1752132318934,0.98411856,671.75,671.36,1.358]
[1752132319136,0.98411856,671.74,671.36,1.358]
[1752132319335,0.98411856,671.73,671.36,1.358]
[1752132319535,0.98411856,671.72,671.36,1.358]
[1752132319737,0.98411856,671.71,671.36,1.358]
[1752132319939,0.98411856,671.77,671.36,1.358]
[1752132320138,0.98411856,671.76,671.36,1.358]
[1752132320335,0.98411856,671.75,671.36,1.358]
[1752132320536,0.98411856,671.74,671.28,1.6683716]
[1752132320741,0.98411856,671.73,671.28,1.6683716]
[1752132321034,0.98411856,671.72,671.11,2.2067592]
[1752132321238,0.9841166,671.71,671.28,1.6680134]
[1752132321435,0.9841166,671.77,671.28,1.6680134]
[1752132321636,0.9841166,671.76,671.28,1.6680134]
[1752132321835,0.9841166,671.75,671.28,1.6680134]
[1752132322139,0.9841166,671.74,671.28,1.6680134]
[1752132322340,0.9841166,671.73,671.28,1.6680134]
[1752132322539,0.9841166,671.72,671.28,1.6680134]
[1752132322736,0.9841166,671.71,671.28,1.6680134]
[1752132323036,0.9841166,671.77,671.29,1.6680134]
[1752132323237,0.9841166,671.76,671.29,3.3740134]
[1752132323438,0.9841166,671.75,671.29,3.3740134]
[1752132323638,0.9841166,671.74,671.29,3.3740134]
[1752132323836,0.9841166,671.73,671.29,3.3740134]
[1752132324136,0.9841166,671.72,671.29,1.706]
[1752132324338,0.9841166,671.71,671.29,3.3740134]
[1752132324537,0.9841166,671.77,671.29,3.3740134]
[1752132324742,0.9841166,671.76,671.29,3.3740134]
[1752132325041,0.98411476,671.75,671.29,3.3740134]
[1752132325243,0.98411476,671.74,671.29,3.3740134]
[1752132325442,0.98411476,671.73,671.29,3.3740134]
[1752132325742,0.98411476,671.72,671.29,3.3740134]
[1752132325945,0.98411476,671.71,671.29,3.3740134]
[1752132326146,0.98411476,671.77,671.29,3.3740134]
[1752132326445,0.98411476,671.76,671.29,3.3740134]
[1752132326646,0.98411476,671.75,671.29,3.3740134]
[1752132326844,0.98411476,671.74,671.29,3.3740134]
[1752132327042,0.98411476,671.73,671.29,3.3740134]
[1752132327242,0.98411476,671.72,671.29,3.3740134]
[1752132327441,0.98411476,671.71,671.29,3.3740134]
[1752132327645,0.98411476,671.7,671.29,3.3740134]
[1752132327843,0.98411476,671.76,671.29,3.3740134]
[1752132328044,0.98411476,671.75,671.29,3.3740134]
[1752132328246,0.98411476,671.74,671.29,3.3740134]
[1752132328444,1.6743051,671.77,671.29,3.3740134]
[1752132328445,0.98411476,671.73,671.29,3.3740134]
[1752132328648,0.98411476,671.72,671.29,3.3740134]
[1752132328845,1.6743051,671.77,671.3,1.6680134]
[1752132328846,0.98411476,671.71,671.3,1.6680134]
[1752132329050,0.98411476,671.7,671.3,1.6680134]
[1752132329250,0.98411476,671.76,671.3,1.6680134]
[1752132329546,0.98411476,671.75,671.32,1.6680134]
[1752132329747,0.98411476,671.74,671.32,1.6680134]
[1752132329951,0.98411476,671.73,671.32,1.6680134]
[1752132330148,0.98411476,671.72,671.3,1.6680134]
[1752132330348,0.98411476,671.71,671.32,1.6680134]
[1752132330648,0.25908665,671.88,671.3,1.6680134]
[1752132330649,0.98411476,671.7,671.3,1.6680134]
[1752132330951,0.98411476,671.76,671.3,1.6680134]
[1752132331150,0.98411476,671.75,671.3,1.6680134]
[1752132331352,0.98411476,671.74,671.3,1.6680134]
[1752132331648,0.98411476,671.73,671.3,1.6680134]
[1752132331852,0.98411476,671.72,671.3,1.6680134]
[1752132332148,0.98411476,671.71,671.3,1.6680134]
[1752132332449,0.98411476,671.7,671.3,1.6680134]
[1752132332649,0.98411476,671.76,671.3,1.6680134]
[1752132332848,0.98411476,671.75,671.3,1.6680134]
[1752132333049,0.98411476,671.75,671.29,1.706]
[1752132333050,0.98411476,671.74,671.29,3.3740134]
[1752132333249,0.98411476,671.73,671.3,1.6680134]
[1752132333448,0.98411476,671.72,671.3,1.6680134]
[1752132333647,0.98411476,671.71,671.29,3.3740134]
[1752132333949,0.98411476,671.7,671.29,3.3740134]
[1752132334148,2.65841986,671.77,671.29,3.3740134]
[1752132334350,0.98411476,671.76,671.29,3.3740134]
[1752132334552,0.98411476,671.75,671.29,3.3740134]
[1752132334752,0.98411476,671.74,671.29,3.3740134]
[1752132335052,0.98411476,671.73,671.29,3.3740134]
[1752132335353,0.98411476,671.72,671.29,3.3740134]
[1752132335549,0.98411476,671.71,671.29,3.3740134]
[1752132335853,0.98411476,671.7,671.29,3.3740134]
[1752132336048,0.98411476,671.76,671.29,3.3740134]
[1752132336251,0.98411476,671.75,671.29,3.3740134]
[1752132336452,0.98411476,671.74,671.29,3.3740134]
[1752132336652,0.98411476,671.73,671.29,3.3740134]
[1752132336852,0.98411476,671.72,671.29,3.3740134]
[1752132337051,0.98411476,671.71,671.29,3.3740134]
[1752132337251,0.98411476,671.7,671.29,3.3740134]
[1752132337450,0.98411476,671.76,671.29,3.3740134]
[1752132337651,0.98411476,671.75,671.29,3.3740134]
[1752132337850,0.98411476,671.74,671.29,3.3740134]
[1752132338051,0.98411476,671.73,671.29,3.3740134]
[1752132338249,0.98411476,671.72,671.29,3.3740134]
[1752132338450,0.98411476,671.71,671.29,3.3740134]
[1752132338752,0.98411476,671.7,671.29,3.3740134]
[1752132338950,0.98411476,671.76,671.29,3.3740134]
[1752132339150,0.98411476,671.75,671.29,3.3740134]
[1752132339348,0.98411476,671.74,671.29,1.706]
[1752132339554,0.98411476,671.73,671.29,1.706]
[1752132339755,0.98411476,671.72,671.29,1.706]
[1752132339953,0.98411476,671.78,671.29,1.706]
[1752132340151,0.98411476,671.77,671.29,1.706]
[1752132340351,0.98411476,671.76,671.29,1.706]
[1752132340552,0.98411476,671.75,671.29,1.706]
[1752132340856,0.98411476,671.74,671.29,1.706]
[1752132341054,0.98411476,671.73,671.29,1.706]
[1752132341352,0.98411476,671.72,671.29,1.706]
[1752132341652,0.98411476,671.71,671.29,1.706]
[1752132341851,0.98411476,671.77,671.29,1.706]
[1752132342056,0.98411476,671.76,671.29,1.706]
[1752132342355,0.98411476,671.75,671.29,1.706]
[1752132342555,0.98411476,671.74,671.29,1.706]
[1752132342755,0.98411476,671.73,671.29,1.706]
[1752132343055,1.6743051,671.78,671.29,3.3740134]
[1752132343056,0.98411476,671.72,671.29,3.3740134]
[1752132343256,0.98411476,671.71,671.29,3.3740134]
[1752132343457,0.98411476,671.7,671.29,3.3740134]
[1752132343655,0.98411476,671.76,671.29,3.3740134]
[1752132343856,0.98411476,671.75,671.29,3.3740134]
[1752132344051,0.98411476,671.74,671.29,3.3740134]
[1752132344252,0.98411476,671.73,671.29,3.3740134]
[1752132344450,1.6743051,671.77,671.29,3.3740134]
[1752132344451,0.98411476,671.72,671.3,1.6680134]
[1752132344653,0.98411476,671.71,671.3,1.6680134]
[1752132344954,0.98411476,671.7,671.3,1.6680134]
[1752132345157,0.98411476,671.76,671.3,1.6680134]
[1752132345355,0.98411476,671.75,671.3,1.6680134]
[1752132345557,0.98411476,671.74,671.3,1.6680134]
[1752132345854,0.98411476,671.73,671.3,1.6680134]
[1752132346157,0.98411476,671.72,671.3,1.6680134]
[1752132346354,0.98411476,671.71,671.3,1.6680134]
[1752132346552,1.6743051,671.83,671.29,1.706]
[1752132346857,0.98411476,671.82,671.29,1.706]
[1752132347055,0.98411476,671.81,671.29,1.706]
[1752132347253,0.98411476,671.8,671.29,1.706]
[1752132347455,0.98411476,671.79,671.29,1.706]
[1752132347656,0.98411476,671.78,671.29,1.706]
[1752132347960,0.98411476,671.77,671.29,1.706]
[1752132348259,0.98411476,671.76,671.29,1.706]
[1752132348460,0.98411476,671.82,671.29,1.706]
[1752132348661,0.98411476,671.81,671.29,1.706]
[1752132348963,0.98411476,671.8,671.29,1.706]
[1752132349161,0.98411476,671.79,671.29,1.706]
[1752132349358,0.98411476,671.78,671.29,1.706]
[1752132349558,0.98411476,671.77,671.29,1.706]
[1752132349759,0.98411476,671.76,671.29,1.706]
[1752132349962,0.98411476,671.82,671.29,1.706]
[1752132350162,0.98411476,671.81,671.29,1.706]
[1752132350363,0.98411476,671.8,671.29,1.706]
[1752132350663,0.98411476,671.79,671.29,1.706]
[1752132350864,0.98411476,671.78,671.29,1.706]
[1752132351066,0.98411476,671.77,671.29,1.706]
[1752132351265,0.98411476,671.76,671.29,1.706]
[1752132351565,0.98411476,671.82,671.29,1.706]
[1752132351861,0.98411476,671.81,671.29,1.706]
[1752132352062,0.98411476,671.8,671.29,1.706]
[1752132352265,0.98411476,671.79,671.29,1.706]
[1752132352467,0.98411476,671.78,671.29,1.706]
[1752132352666,0.98411476,671.77,671.29,1.706]
[1752132352867,0.98411476,671.82,671.29,1.706]
[1752132353067,0.98411476,671.81,671.29,1.706]
[1752132353266,0.98411476,671.86,671.29,1.706]
[1752132353468,0.98411476,671.85,671.29,1.706]
[1752132353668,0.98411476,671.84,671.29,1.706]
[1752132353964,0.98411476,671.83,671.29,1.706]
[1752132354166,0.98411476,671.82,671.29,1.706]
[1752132354367,0.25910594,671.76,671.29,1.706]
[1752132362876,0.98411476,671.75,671.29,1.706]
[1752132363073,0.98411476,671.74,671.29,1.706]
[1752132363276,0.98411476,671.73,671.29,1.706]
[1752132363473,0.98411476,671.75,671.29,1.706]